bitfinex-derivatives/quotes_SOLF0:USTF0_20250426
["timestamp","ask_amount","ask_price","bid_price","bid_amount"]
[1745695863289,6.7249,148.64,148.61,6.7261]
[1745695864490,9.13954538,148.65,148.61,6.7261]
[1745695864491,6.7245,148.65,148.62,6.7257]
[1745695866185,6.7245,148.65,148.61,15.86554538]
[1745695866390,15.86404538,148.65,148.61,15.86554538]
[1745695866892,15.86404538,148.65,148.62,6.7256]
[1745695870391,15.86404538,148.65,148.61,39.26554538]
[1745695874196,15.86404538,148.65,148.61,15.86554538]
[1745695875898,6.7249,148.64,148.61,15.86554538]
[1745695876104,9.13954538,148.63,148.6,23.4]
[1745695876397,9.13954538,148.62,148.6,23.4]
[1745695877399,15.86554538,148.62,148.6,23.4]
[1745695882601,6.7261,148.61,148.6,23.4]
[1745695884300,15.86534538,148.62,148.6,23.4]
[1745695889605,6.7258,148.62,148.6,23.4]
[1745695890907,6.7261,148.61,148.58,15.86684538]
[1745695891208,9.13954538,148.6,148.57,23.5]
[1745695891504,9.13954538,148.61,148.57,32.63954538]
[1745695892609,6.7269,148.6,148.57,32.63954538]
[1745695894107,6.7269,148.6,148.57,39.36744538]
[1745695897710,6.7263,148.61,148.58,15.86704538]
[1745695904309,6.7263,148.61,148.58,6.7275]
[1745695908219,6.7263,148.61,148.59,6.727]
[1745695908420,9.13954538,148.65,148.6,9.13954538]
[1745695908713,2.1112,148.67,148.63,15.86474538]
[1745695908907,6.7242,148.66,148.63,15.86474538]
[1745695909111,6.7242,148.66,148.63,9.13954538]
[1745695909308,6.7242,148.66,148.62,15.86514538]
[1745695909526,15.86374538,148.66,148.62,15.86514538]
[1745695910412,6.7245,148.65,148.62,15.86514538]
[1745695911616,6.7245,148.65,148.62,9.13954538]
[1745695911913,6.7248,148.64,148.61,32.63954538]
[1745695912219,15.86434538,148.64,148.61,23.5]
[1745695914814,6.7248,148.64,148.61,23.5]
[1745695916622,6.7248,148.64,148.61,32.63954538]
[1745695922647,6.7252,148.63,148.61,32.63954538]
[1745695931134,9.13954538,148.63,148.59,9.13954538]
[1745695931333,9.13954538,148.61,148.58,23.44]
[1745695931734,9.13954538,148.61,148.54,2.0067]
[1745695931735,9.13954538,148.59,148.55,23.44]
[1745695932228,6.7278,148.58,148.55,23.44]
[1745695932735,6.7278,148.58,148.55,32.57954538]
[1745695933029,9.13954538,148.57,148.54,2.0067]
[1745695933234,9.13954538,148.56,148.52,32.57954538]
[1745695933529,9.13954538,148.55,148.52,23.44]
[1745695933736,9.13954538,148.54,148.5,11.17444538]
[1745695933925,9.13954538,148.54,148.5,9.13954538]
[1745695934126,15.86904538,148.54,148.5,15.87064538]
[1745695934333,9.13954538,148.54,148.5,9.13954538]
[1745695934935,9.13954538,148.54,148.5,15.87064538]
[1745695936140,15.86884538,148.54,148.5,15.87064538]
[1745695936638,9.13954538,148.54,148.51,6.7306]
[1745695936942,15.86884538,148.55,148.51,6.7306]
[1745695938140,15.86884538,148.55,148.51,15.87014538]
[1745695939946,9.13954538,148.55,148.51,15.87014538]
[1745695940240,9.13954538,148.55,148.51,9.13954538]
[1745695941247,6.7301,148.54,148.51,9.13954538]
[1745695942351,6.7305,148.53,148.5,15.87114538]
[1745695942651,6.7305,148.53,148.5,6.7316]
[1745695943148,6.7305,148.53,148.49,39.31164538]
[1745695943347,15.86974538,148.54,148.49,39.31164538]
[1745695943548,9.13954538,148.53,148.49,32.57954538]
[1745695943746,9.13954538,148.53,148.5,6.7317]
[1745695943951,15.87004538,148.53,148.5,6.7317]
[1745695945050,9.13954538,148.53,148.5,6.7317]
[1745695946249,9.13954538,148.55,148.51,9.13954538]
[1745695946744,9.13954538,148.55,148.52,6.7306]
[1745695949856,15.86914538,148.55,148.52,6.7306]
[1745695950553,9.13954538,148.54,148.51,6.7312]
[1745695950751,9.13954538,148.53,148.51,6.7312]
[1745695951956,9.13954538,148.53,148.5,6.7316]
[1745695953657,15.87004538,148.53,148.5,6.7316]
[1745695958160,9.13954538,148.53,148.5,6.7316]
[1745695958362,9.13954538,148.51,148.47,9.13954538]
[1745695958864,6.7318,148.5,148.47,9.13954538]
[1745695959062,9.13954538,148.51,148.47,9.13954538]
[1745695959363,23.44,148.57,148.5,6.7318]
[1745695959364,15.87024538,148.53,148.5,6.7318]
[1745695960265,15.87024538,148.53,148.49,15.87164538]
[1745695960463,6.7309,148.52,148.49,15.87164538]
[1745695960662,6.7309,148.52,148.49,6.7321]
[1745695961260,15.87014538,148.53,148.5,6.7318]
[1745695961663,6.7309,148.52,148.49,6.7321]
[1745695962661,15.87044538,148.52,148.49,6.7321]
[1745695968267,9.13954538,148.52,148.49,6.7321]
[1745695968665,15.87044538,148.52,148.49,6.7321]
[1745695969867,6.7303,148.54,148.51,9.13954538]
[1745695970365,6.7297,148.55,148.51,9.13954538]
[1745695970570,32.57954538,148.57,148.53,9.13954538]
[1745695972266,6.7292,148.56,148.53,15.86994538]
[1745695972765,5.9398,148.55,148.53,15.86994538]
[1745695973067,5.9398,148.55,148.53,9.13954538]
[1745695973969,12.6695,148.55,148.53,9.13954538]
[1745695974160,12.6695,148.55,148.52,9.13954538]
[1745695974363,12.6695,148.55,148.51,15.87074538]
[1745695975970,12.6695,148.55,148.52,6.7309]
[1745695978573,5.9398,148.55,148.52,6.7309]
[1745695979569,12.6693,148.55,148.52,6.7309]
[1745695980665,9.13954538,148.54,148.5,32.57954538]
[1745695981573,6.7308,148.53,148.5,39.31104538]
[1745695984772,6.7308,148.53,148.51,6.7313]
[1745695985072,15.86964538,148.54,148.51,15.87084538]
[1745695985270,6.7301,148.54,148.51,15.87084538]
[1745695986274,6.7306,148.53,148.5,30.1716]
[1745695986473,6.7306,148.53,148.5,23.44]
[1745695986878,6.7306,148.53,148.5,30.1716]
[1745695988075,15.86974538,148.54,148.5,30.1716]
[1745695988273,15.86974538,148.54,148.51,6.7313]
[1745695988774,15.86974538,148.54,148.5,39.31114538]
[1745695990176,6.7304,148.53,148.5,39.31114538]
[1745695991178,6.7304,148.53,148.5,32.57954538]
[1745695991577,9.13954538,148.53,148.5,23.44]
[1745695991774,9.13954538,148.52,148.5,23.44]
[1745695992076,9.13954538,148.51,148.47,32.55954538]
[1745695992283,5.9188,148.5,148.47,15.87234538]
[1745695992576,5.9188,148.5,148.48,9.13954538]
[1745695992777,5.9188,148.5,148.49,15.87184538]
[1745696010287,1.9353,148.5,148.49,15.87184538]
[1745696011091,6.7309,148.52,148.49,15.87184538]
[1745696011290,15.87014538,148.53,148.5,6.7318]
[1745696016586,15.87014538,148.53,148.51,6.7313]
[1745696016890,6.7306,148.53,148.51,6.7313]
[1745696017191,6.7306,148.53,148.5,9.13954538]
[1745696017792,6.7306,148.53,148.5,15.87124538]
[1745696018392,6.731,148.52,148.5,15.87124538]
[1745696018592,6.731,148.52,148.5,6.7317]
[1745696026999,6.731,148.52,148.49,15.87174538]
[1745696030102,6.0741,148.56,148.51,9.13954538]
[1745696030298,2.0518,148.56,148.54,9.13954538]
[1745696030600,6.7285,148.58,148.55,15.86904538]
[1745696030801,6.7285,148.58,148.57,9.13954538]
[1745696033302,6.7286,148.57,148.56,9.13954538]
[1745696033501,6.7286,148.57,148.55,9.13954538]
[1745696034114,6.7284,148.58,148.55,9.13954538]
[1745696034804,6.7284,148.58,148.55,15.86904538]
[1745696035205,6.7278,148.59,148.56,9.13954538]
[1745696035502,6.7278,148.59,148.57,9.13954538]
[1745696040402,6.7274,148.6,148.58,9.13954538]
[1745696040905,34.0074,148.61,148.59,9.13954538]
[1745696041109,34.0074,148.61,148.45,1.17142136]
[1745696041110,1.9435,148.61,148.6,9.13954538]
[1745696041309,32.55954538,148.64,148.6,9.13954538]
[1745696041507,23.42,148.64,148.61,9.13954538]
[1745696042342,6.7265,148.62,148.61,9.13954538]
[1745696042519,6.7265,148.62,148.6,9.13954538]
[1745696042811,1.9558,148.65,148.61,9.13954538]
[1745696043011,6.7257,148.64,148.62,9.13954538]
[1745696043211,1.9558,148.65,148.57,23.42]
[1745696043212,1.9558,148.65,148.63,9.13954538]
[1745696043539,8.6811,148.65,148.63,9.13954538]
[1745696044313,6.7255,148.64,148.62,9.13954538]
[1745696049416,6.7255,148.64,148.61,39.26614538]
[1745696050316,6.7259,148.63,148.61,32.53954538]
[1745696050516,6.7259,148.63,148.62,9.13954538]
[1745696052913,1.9558,148.65,148.62,9.13954538]
[1745696053218,6.7256,148.64,148.62,9.13954538]
[1745696059025,6.7256,148.64,148.61,32.53954538]
[1745696059327,9.13954538,148.64,148.61,23.4]
[1745696059626,9.13954538,148.63,148.59,9.13954538]
[1745696059829,9.13954538,148.64,148.59,9.13954538]
[1745696060028,6.7267,148.62,148.6,9.13954538]
[1745696060327,11.09534538,148.65,148.6,9.13954538]
[1745696060529,6.7258,148.64,148.61,15.86634538]
[1745696060728,6.7258,148.64,148.63,9.13954538]
[1745696062348,8.681,148.65,148.63,9.13954538]
[1745696063632,6.7252,148.65,148.63,9.13954538]
[1745696063832,9.13954538,148.68,148.64,9.13954538]
[1745696064130,9.13954538,148.69,148.65,9.13954538]
[1745696064928,6.7244,148.67,148.65,9.13954538]
[1745696075743,6.7246,148.66,148.65,9.13954538]
[1745696079444,6.7246,148.66,148.64,9.13954538]
[1745696081049,6.7243,148.67,148.64,9.13954538]
[1745696084453,6.7247,148.66,148.64,9.13954538]
[1745696088248,6.7243,148.67,148.64,15.86504538]
[1745696089851,6.7243,148.67,148.64,9.13954538]
[1745696090254,6.7247,148.66,148.64,9.13954538]
[1745696091558,6.725,148.65,148.64,9.13954538]
[1745696091747,9.13954538,148.65,148.62,23.4]
[1745696093455,6.7258,148.64,148.62,23.4]
[1745696098657,6.7258,148.64,148.62,30.1264]
[1745696099052,6.7252,148.65,148.62,39.26594538]
[1745696099356,6.7252,148.65,148.63,9.13954538]
[1745696099656,9.13954538,148.68,148.64,9.13954538]
[1745696100257,6.7244,148.67,148.64,15.86474538]
[1745696103959,6.7238,148.68,148.65,15.86454538]
[1745696105870,6.7238,148.68,148.65,9.13954538]
[1745696107763,9.13954538,148.68,148.64,9.13954538]
[1745696108061,9.13954538,148.68,148.63,15.86524538]
[1745696109264,6.7248,148.66,148.63,15.86524538]
[1745696109463,6.7248,148.66,148.63,6.7257]
[1745696112768,6.725,148.65,148.62,39.26574538]
[1745696114277,6.7247,148.66,148.62,39.26574538]
[1745696115177,6.7247,148.66,148.63,15.86524538]
[1745696115370,6.7247,148.66,148.64,9.13954538]
[1745696115676,9.13954538,148.69,148.65,9.13954538]
[1745696115868,32.53954538,148.7,148.65,9.13954538]
[1745696116073,32.53954538,148.7,148.66,9.13954538]
[1745696116571,6.7233,148.69,148.66,9.13954538]
[1745696116775,32.53954538,148.7,148.66,9.13954538]
[1745696116977,6.7239,148.68,148.66,9.13954538]
[1745696119578,15.86284538,148.69,148.66,15.86414538]
[1745696119770,6.7233,148.69,148.66,9.13954538]
[1745696124079,6.7237,148.68,148.66,9.13954538]
[1745696126477,15.86294538,148.69,148.66,9.13954538]
[1745696126982,9.13954538,148.69,148.66,15.86394538]
[1745696127183,15.86234538,148.7,148.66,15.86394538]
[1745696127783,6.7233,148.69,148.66,9.13954538]
[1745696130486,6.7237,148.68,148.66,9.13954538]
[1745696131488,6.7234,148.69,148.66,9.13954538]
[1745696134493,6.7234,148.69,148.66,15.86404538]
[1745696134893,15.86294538,148.69,148.66,15.86404538]
[1745696135389,6.7237,148.68,148.66,9.13954538]
[1745696138292,6.7237,148.68,148.66,15.86404538]
[1745696138496,15.86294538,148.69,148.66,15.86404538]
[1745696138696,6.7234,148.69,148.66,15.86404538]
[1745696139895,6.7237,148.68,148.66,9.13954538]
[1745696140498,6.7237,148.68,148.66,15.86404538]
[1745696142197,6.7237,148.68,148.66,9.13954538]
[1745696142429,6.7237,148.68,148.65,39.24454538]
[1745696142698,6.7237,148.68,148.65,32.51954538]
[1745696143302,6.7237,148.68,148.66,6.7245]
[1745696144502,15.86294538,148.69,148.66,6.7245]
[1745696152312,9.13954538,148.69,148.67,6.724]
[1745696152507,15.86254538,148.7,148.67,6.724]
[1745696154216,15.86254538,148.7,148.66,6.7243]
[1745696154611,6.7233,148.69,148.66,6.7243]
[1745696159417,9.13954538,148.69,148.65,23.38]
[1745696159613,9.13954538,148.66,148.62,23.38]
[1745696159813,9.13954538,148.64,148.62,23.38]
[1745696160114,9.13954538,148.64,148.62,30.1063]
[1745696160313,9.13954538,148.64,148.62,23.38]
[1745696160704,9.13954538,148.65,148.62,32.51954538]
[1745696160908,15.86434538,148.66,148.62,32.51954538]
[1745696161105,15.86434538,148.66,148.63,6.7256]
[1745696161606,15.86434538,148.66,148.63,15.86514538]
[1745696162021,15.86384538,148.67,148.64,15.86484538]
[1745696162228,6.7243,148.67,148.64,15.86484538]
[1745696163816,15.86344538,148.68,148.65,6.725]
[1745696173924,6.7241,148.67,148.65,6.725]
[1745696174926,15.86344538,148.68,148.65,6.725]
[1745696175525,6.7242,148.67,148.65,6.725]
[1745696177332,15.86334538,148.68,148.65,6.725]
[1745696178229,6.7238,148.68,148.65,6.725]
[1745696179528,6.7238,148.68,148.65,15.86454538]
[1745696179832,9.13954538,148.7,148.66,9.13954538]
[1745696180033,36.51644538,148.71,148.66,9.13954538]
[1745696180226,2.0954,148.71,148.67,9.13954538]
[1745696180421,11.23494538,148.71,148.67,9.06281364]
[1745696180631,11.23494538,148.71,148.66,32.51954538]
[1745696180930,9.13954538,148.7,148.66,23.38]
[1745696181129,9.13954538,148.69,148.66,23.38]
[1745696181629,6.7237,148.68,148.66,23.38]
[1745696181830,9.13954538,148.69,148.66,23.38]
[1745696183036,9.13954538,148.7,148.66,23.38]
[1745696183234,6.7235,148.69,148.66,30.1046]
[1745696189636,6.7235,148.69,148.65,15.86434538]
[1745696189836,9.13954538,148.68,148.64,23.38]
[1745696190239,6.7246,148.66,148.64,23.38]
[1745696190737,6.7256,148.64,148.61,30.1066]
[1745696190937,9.13954538,148.65,148.61,30.1066]
[1745696191539,15.86474538,148.65,148.61,30.1066]
[1745696191734,15.86474538,148.65,148.62,15.86584538]
[1745696192036,1.9582,148.66,148.62,9.13954538]
[1745696192339,1.9582,148.66,148.63,9.13954538]
[1745696192533,1.9582,148.66,148.63,15.86504538]
[1745696194138,8.6828,148.66,148.63,15.86504538]
[1745696195042,8.6828,148.66,148.63,6.7255]
[1745696195339,6.725,148.65,148.62,6.7262]
[1745696197439,17.82254538,148.66,148.63,6.7259]
[1745696199042,6.725,148.65,148.63,6.7259]
[1745696199839,17.82244538,148.66,148.63,6.7259]
[1745696201744,17.768895,148.66,148.63,6.7259]
[1745696204842,15.86364538,148.67,148.64,6.7254]
[1745696205647,6.7241,148.67,148.64,15.86494538]
[1745696206344,9.13954538,148.69,148.65,9.13954538]
[1745696206546,32.51954538,148.7,148.66,9.13954538]
[1745696206848,9.13954538,148.7,148.66,9.13954538]
[1745696207547,15.86264538,148.7,148.66,15.86374538]
[1745696208249,15.86264538,148.7,148.67,6.7241]
[1745696212250,15.86264538,148.7,148.66,15.86394538]
[1745696212448,15.86284538,148.69,148.66,6.7244]
[1745696216152,9.13954538,148.69,148.65,23.38]
[1745696216354,15.86244538,148.7,148.65,32.51954538]
[1745696216652,17.86214538,148.71,148.66,9.13954538]
[1745696216851,11.18124538,148.72,148.68,15.86314538]
[1745696217851,17.90354538,148.72,148.68,15.86314538]
[1745696218046,11.18124538,148.72,148.68,15.86314538]
[1745696218453,6.7225,148.71,148.68,9.13954538]
[1745696218752,9.13954538,148.71,148.67,15.86344538]
[1745696218952,15.86254538,148.7,148.67,6.7239]
[1745696224054,9.13954538,148.7,148.67,6.7239]
[1745696224353,15.86194538,148.71,148.67,15.86344538]
[1745696225053,15.86194538,148.71,148.68,6.7236]
[1745696227858,6.722,148.72,148.67,9.13954538]
[1745696228057,9.13954538,148.71,148.67,9.13954538]
[1745696228758,15.86214538,148.71,148.68,6.7234]
[1745696229356,23.38,148.73,148.69,9.13954538]
[1745696229556,9.13954538,148.74,148.69,9.13954538]
[1745696230257,6.7215,148.73,148.7,6.7227]
[1745696231358,9.13954538,148.74,148.71,6.7222]
[1745696233362,15.86044538,148.74,148.71,6.7222]
[1745696233564,13.00974538,148.75,148.71,15.86174538]
[1745696233760,19.73064538,148.75,148.71,6.7222]
[1745696233960,13.00974538,148.75,148.71,6.7222]
[1745696234361,9.13954538,148.74,148.71,6.7222]
[1745696234864,15.86074538,148.74,148.71,6.7222]
[1745696239567,10.5909,148.75,148.72,6.7216]
[1745696241266,8.6803,148.75,148.72,6.7216]
[1745696241971,8.6803,148.75,148.71,15.86164538]
[1745696242178,17.81984538,148.75,148.71,6.7221]
[1745696243467,6.721,148.74,148.71,6.7221]
[1745696243878,6.721,148.74,148.7,15.86204538]
[1745696244565,6.721,148.74,148.71,6.7221]
[1745696247671,9.13954538,148.78,148.73,9.13954538]
[1745696247875,11.04434538,148.79,148.74,9.13954538]
[1745696248272,6.7192,148.78,148.74,15.86014538]
[1745696248463,6.7192,148.78,148.75,9.13954538]
[1745696248971,17.76324538,148.79,148.75,15.85994538]
[1745696249576,6.7176,148.82,148.78,15.85824538]
[1745696249773,9.13954538,148.83,148.79,9.13954538]
[1745696250273,2.0851,148.84,148.78,9.13954538]
[1745696250473,9.13954538,148.82,148.78,9.13954538]
[1745696250674,9.13954538,148.82,148.78,15.85824538]
[1745696251174,2.0851,148.84,148.83,6.7169]
[1745696251475,63.0208685,148.85,148.83,9.13954538]
[1745696251675,63.0208685,148.85,148.84,9.13954538]
[1745696252174,63.0208685,148.85,148.81,23.38]
[1745696252373,9.13954538,148.84,148.81,23.38]
[1745696252976,11.17754538,148.84,148.81,23.38]
[1745696253374,63.0208685,148.92,148.82,9.13954538]
[1745696253577,9.13954538,148.91,148.86,9.13954538]
[1745696253775,9.13954538,148.91,148.87,9.13954538]
[1745696254075,9.13954538,148.91,148.86,9.13954538]
[1745696254376,9.13954538,148.9,148.86,9.13954538]
[1745696255277,9.13954538,148.9,148.86,15.85474538]
[1745696255878,9.13954538,148.89,148.85,39.21544538]
[1745696256080,15.85334538,148.9,148.85,39.21544538]
[1745696258380,6.7138,148.9,148.87,9.13954538]
[1745696259581,9.13954538,148.9,148.86,9.13954538]
[1745696259880,9.13954538,148.89,148.84,9.13954538]
[1745696260080,15.85444538,148.88,148.84,15.85594538]
[1745696262295,15.85444538,148.88,148.84,9.13954538]
[1745696263690,15.85444538,148.88,148.84,15.85584538]
[1745696264990,6.7152,148.87,148.84,9.13954538]
[1745696268298,6.7148,148.88,148.84,9.13954538]
[1745696268595,9.13954538,148.89,148.85,9.13954538]
[1745696268895,9.13954538,148.89,148.84,9.13954538]
[1745696269295,6.7151,148.87,148.84,9.13954538]
[1745696270192,6.7145,148.89,148.86,9.13954538]
[1745696270396,23.36,148.9,148.87,9.13954538]
[1745696271698,30.074,148.9,148.87,9.13954538]
[1745696273197,6.7142,148.89,148.87,9.13954538]
[1745696273392,6.7142,148.89,148.86,9.13954538]
[1745696274595,2.038,148.92,148.88,9.13954538]
[1745696274799,2.038,148.92,148.89,9.13954538]
[1745696275399,8.751,148.92,148.9,9.13954538]
[1745696275992,2.038,148.92,148.9,9.13954538]
[1745696276300,8.7509,148.92,148.9,9.13954538]
[1745696277003,2.038,148.92,148.9,9.13954538]
[1745696278603,8.7509,148.92,148.9,9.13954538]
[1745696279801,6.7133,148.91,148.9,9.13954538]
[1745696280002,6.7133,148.91,148.89,9.13954538]
[1745696280697,8.751,148.92,148.89,9.13954538]
[1745696281302,6.7134,148.91,148.89,9.13954538]
[1745696284305,8.751,148.92,148.89,9.13954538]
[1745696284701,9.13954538,148.94,148.9,9.13954538]
[1745696285002,6.7129,148.92,148.9,9.13954538]
[1745696285205,9.13954538,148.93,148.88,9.13954538]
[1745696285396,6.7135,148.91,148.88,9.13954538]
[1745696286605,6.7135,148.91,148.88,15.85414538]
[1745696287404,6.7135,148.91,148.89,9.13954538]
[1745696288701,23.34,148.96,148.89,9.13954538]
[1745696289005,23.34,148.96,148.92,9.13954538]
[1745696289204,23.34,148.96,148.9,23.34]
[1745696289408,9.13954538,148.95,148.9,32.47954538]
[1745696289605,32.47954538,148.96,148.92,9.13954538]
[1745696289806,6.712,148.94,148.92,9.13954538]
[1745696290304,32.47954538,148.96,148.92,9.13954538]
[1745696291305,9.13954538,148.95,148.9,32.47954538]
[1745696291608,9.13954538,148.94,148.89,9.13954538]
[1745696291811,9.13954538,148.93,148.89,9.13954538]
[1745696292009,6.7132,148.92,148.89,9.13954538]
[1745696294711,6.7134,148.91,148.88,9.13954538]
[1745696295014,6.7134,148.91,148.87,30.0549]
[1745696295213,6.7134,148.91,148.88,9.13954538]
[1745696297512,6.7134,148.91,148.88,15.85404538]
[1745696299314,6.7134,148.91,148.89,9.13954538]
[1745696299611,6.713,148.92,148.89,9.13954538]
[1745696302515,6.7133,148.91,148.89,9.13954538]
[1745696304415,6.7122,148.94,148.89,9.13954538]
[1745696304615,6.7122,148.94,148.91,9.13954538]
[1745696306015,6.7122,148.94,148.92,9.13954538]
[1745696306712,6.7122,148.94,148.91,9.13954538]
[1745696306917,15.85124538,148.95,148.91,15.85274538]
[1745696307612,6.712,148.94,148.91,15.85274538]
[1745696307812,6.712,148.94,148.9,6.7135]
[1745696308013,6.712,148.94,148.9,15.85304538]
[1745696308222,6.712,148.94,148.9,6.7135]
[1745696308418,6.7124,148.93,148.9,6.7135]
[1745696308622,9.13954538,148.94,148.9,15.85304538]
[1745696308821,9.13954538,148.95,148.9,15.85304538]
[1745696309019,6.7122,148.94,148.9,15.85304538]
[1745696314325,6.7122,148.94,148.91,9.13954538]
[1745696316727,6.7122,148.94,148.91,15.85274538]
[1745696317425,6.7109,148.97,148.93,15.85164538]
[1745696317728,6.7109,148.97,148.92,32.59954538]
[1745696317729,9.13954538,148.97,148.92,32.59954538]
[1745696317926,27.4752,148.99,148.92,32.59954538]
[1745696317927,9.13954538,148.95,148.92,23.46]
[1745696318123,15.85184538,148.94,148.9,15.85304538]
[1745696318324,9.13954538,148.94,148.9,15.85304538]
[1745696318631,15.85174538,148.94,148.9,15.85304538]
[1745696319339,6.7122,148.94,148.9,15.85304538]
[1745696319636,6.7125,148.93,148.9,15.85304538]
[1745696323239,6.7125,148.93,148.91,9.13954538]
[1745696323640,6.7121,148.94,148.91,9.13954538]
[1745696330547,6.7124,148.93,148.91,9.13954538]
[1745696330748,6.7124,148.93,148.89,32.59954538]
[1745696331747,9.13954538,148.94,148.89,32.59954538]
[1745696331945,9.13954538,148.92,148.89,23.46]
[1745696332245,9.13954538,148.92,148.87,9.13954538]
[1745696332445,9.13954538,148.91,148.87,9.13954538]
[1745696332742,15.85304538,148.91,148.87,9.13954538]
[1745696332947,15.85304538,148.91,148.87,15.85444538]
[1745696333455,9.13954538,148.91,148.86,23.46]
[1745696333654,9.13954538,148.9,148.86,32.59954538]
[1745696334550,6.7142,148.89,148.86,32.59954538]
[1745696335741,15.85344538,148.9,148.86,39.31494538]
[1745696336247,6.7139,148.9,148.87,9.13954538]
[1745696339446,15.85344538,148.9,148.87,9.13954538]
[1745696340751,15.85344538,148.9,148.86,30.1754]
[1745696340953,15.85344538,148.9,148.86,39.31494538]
[1745696343052,6.7143,148.89,148.86,32.59954538]
[1745696343549,6.7143,148.89,148.86,9.13954538]
[1745696343852,6.1592,148.94,148.87,9.13954538]
[1745696344151,9.13954538,148.93,148.88,9.13954538]
[1745696344351,9.13954538,148.93,148.89,9.13954538]
[1745696344553,6.7127,148.93,148.89,9.13954538]
[1745696345054,6.7127,148.93,148.89,15.85364538]
[1745696345553,6.7127,148.93,148.9,9.13954538]
[1745696345750,6.7129,148.92,148.9,9.13954538]
[1745696345952,6.7129,148.92,148.89,9.13954538]
[1745696346553,6.7129,148.92,148.89,15.85364538]
[1745696349258,6.7129,148.92,148.89,9.13954538]
[1745696349459,6.7129,148.92,148.88,39.33394538]
[1745696350751,15.85244538,148.92,148.88,39.33394538]
[1745696351858,6.7129,148.92,148.89,9.13954538]
[1745696354158,6.7134,148.91,148.88,39.33394538]
[1745696354458,9.13954538,148.92,148.88,39.33394538]
[1745696356261,6.7133,148.91,148.88,39.33394538]
[1745696356561,9.13954538,148.92,148.88,39.33394538]
[1745696356761,9.13954538,148.91,148.88,23.48]
[1745696356963,9.13954538,148.91,148.86,9.13954538]
[1745696357259,9.13954538,148.9,148.86,6.7152]
[1745696357455,15.85354538,148.9,148.86,6.7152]
[1745696357655,9.13954538,148.9,148.85,32.55954538]
[1745696358261,6.7142,148.89,148.85,39.27524538]
[1745696358864,6.7142,148.89,148.85,30.1357]
[1745696359163,6.7147,148.88,148.85,32.55954538]
[1745696359362,9.13954538,148.89,148.85,32.55954538]
[1745696359963,9.13954538,148.89,148.85,39.27524538]
[1745696361163,15.85374538,148.89,148.85,39.27524538]
[1745696361660,6.7142,148.89,148.86,9.13954538]
[1745696363968,15.85334538,148.9,148.86,15.85494538]
[1745696364264,23.42,148.91,148.87,9.13954538]
[1745696364561,30.1334,148.91,148.87,15.85434538]
[1745696366868,6.7137,148.9,148.87,15.85434538]
[1745696369672,30.1334,148.91,148.88,9.13954538]
[1745696370164,6.7134,148.91,148.88,9.13954538]
[1745696371472,6.7134,148.91,148.88,15.85414538]
[1745696371865,6.7134,148.91,148.88,9.13954538]
[1745696372270,15.85294538,148.91,148.87,6.7149]
[1745696374277,9.13954538,148.91,148.86,6.7154]
[1745696374575,29.5792,148.94,148.86,9.13954538]
[1745696374773,9.13954538,148.91,148.87,9.13954538]
[1745696375074,15.85284538,148.91,148.87,15.85424538]
[1745696376678,15.85334538,148.9,148.87,15.85424538]
[1745696376875,15.85334538,148.9,148.87,6.7147]
[1745696378483,9.13954538,148.9,148.87,6.7147]
[1745696378678,9.13954538,148.9,148.86,15.85494538]
[1745696379178,15.85354538,148.9,148.86,15.85494538]
[1745696380479,15.85354538,148.9,148.87,6.715]
[1745696381178,9.13954538,148.9,148.87,6.715]
[1745696381778,9.13954538,148.9,148.86,9.13954538]
[1745696381981,9.13954538,148.91,148.87,9.13954538]
[1745696383082,9.13954538,148.93,148.87,9.13954538]
[1745696383580,15.85214538,148.93,148.89,6.7138]
[1745696385482,15.85254538,148.92,148.89,6.7138]
[1745696386681,9.13954538,148.92,148.89,6.7138]
[1745696394382,9.13954538,148.92,148.9,6.7136]
[1745696396986,9.13954538,148.92,148.89,6.714]
[1745696399688,9.13954538,148.91,148.89,6.714]
[1745696410095,15.85284538,148.91,148.88,6.7145]
[1745696410294,9.13954538,148.91,148.88,6.7145]
[1745696410496,9.13954538,148.91,148.87,23.54]
[1745696410694,9.13954538,148.91,148.88,6.7143]
[1745696412494,9.13954538,148.91,148.89,6.7141]
[1745696423299,6.7131,148.92,148.89,6.7141]
[1745696423610,9.13954538,148.93,148.89,6.7141]
[1745696423801,9.13954538,148.93,148.88,9.13954538]